Workbook

Sheet 封面
A1: 附件2
A2: 2019年部门综合预算公开报表
A4: 部门名称：自然资源局
A5: 保密审查情况：（已审）
A6: 部门主要负责人审签情况：(已审）

Sheet 目录
A1: 目录
A2: 报表 | B2: 报表名称 | K2: 是否空表 | L2: 公开空表理由
A3: 表1 | B3: 2019年部门综合预算收支总表 | K3: 否
A4: 表2 | B4: 2019年部门综合预算收入总表 | K4: 否
A5: 表3 | B5: 2019年部门综合预算支出总表 | K5: 否
A6: 表4 | B6: 2019年部门综合预算财政拨款收支总表 | K6: 否
A7: 表5 | B7: 2019年部门综合预算一般公共预算支出明细表（按支出功能分类科目） | K7: 否
A8: 表6 | B8: 2019年部门综合预算一般公共预算支出明细表（按支出经济分类科目） | K8: 否
A9: 表7 | B9: 2019年部门综合预算一般公共预算基本支出明细表（按支出功能分类科目） | K9: 否
A10: 表8 | B10: 2019年部门综合预算一般公共预算基本支出明细表（按支出经济分类科目） | K10: 否
A11: 表9 | B11: 2019年部门综合预算政府性基金收支表 | K11: 是 | L11: 财政统一公开
A12: 表10 | B12: 2019年部门综合预算专项业务经费支出表 | K12: 否
A13: 表11 | B13: 2019年部门综合预算财政拨款结转资金支出表 | K13: 是 | L13: 本单位无财政拨款结转资金支出
A14: 表12 | B14: 2019年部门综合预算政府采购（资产配置、购买服务）预算表 | K14: 否
A15: 表13 | B15: 2019年部门综合预算一般公共预算拨款“三公”经费及会议费、培训费支出预算表 | K15: 否
A16: 表14 | B16: 2019年部门专项业务经费一级项目绩效目标表 | K16: 否
A17: 表15 | B17: 2019年部门整体支出绩效目标表 | K17: 否
A18: 表16 | B18: 2019年专项资金整体绩效目标表 | K18: 否
A19: 注：1、封面和目录的格式不得随意改变。2、公开空表一定要在目录说明理由。

Sheet 表1-部门综合预算收支总表
A1: 表1
A2: 2019年部门综合预算收支总表
F3: 单位：百元
A4: 收 入 | C4: 支 出
A5: 项 目 | B5: 预算数 | C5: 支出功能分类科目（按大类） | D5: 预算数 | E5: 支出经济分类科目（按大类） | F5: 预算数 | G5: 政府预算支出经济分类科目（按大类） | H5: 预算数
A6: 一、部门预算 | B6: =B7 -> 97817 | C6: 一、部门预算 | D6: =SUM(D7:D34) -> 97817 | E6: 一、部门预算 | F6: =F7+F12 -> 97817 | G6: 一、部门预算 | H6: =SUM(H7:H21) -> 97817
A7: 1、财政拨款 | B7: =B8 -> 97817 | C7: 1、一般公共服务支出 | E7: 1、人员经费和公用经费支出 | F7: =F8+F9+F10+F11 -> 94317 | G7: 1、机关工资福利支出 | H7: =F8 -> 89945
A8: (1)一般公共预算拨款 | B8: 97817 | C8: 2、外交支出 | E8: (1)工资福利支出 | F8: 89945 | G8: 2、机关商品和服务支出 | H8: =F9+F12 -> 7788
A9: 其中：专项资金列入部门预算的项目 | C9: 3、国防支出 | E9: (2)商品和服务支出 | F9: 4288 | G9: 3、机关资本性支出（一）
A10: (2)政府性基金拨款 | C10: 4、公共安全支出 | E10: (3)对个人和家庭的补助 | F10: 84 | G10: 4、机关资本性支出（二）
A11: (3)国有资本经营预算收入 | C11: 5、教育支出 | E11: (4)资本性支出 | G11: 5、对事业单位经常性补助
A12: 2、上级补助收入 | C12: 6、科学技术支出 | E12: 2、专项业务经费支出 | F12: 3500 | G12: 6、对事业单位资本性补助
A13: 3、事业收入 | C13: 7、文化体育与传媒支出 | E13: (1)工资福利支出 | G13: 7、对企业补助
A14: 其中：纳入财政专户管理的收费 | C14: 8、社会保障和就业支出 | E14: (2)商品和服务支出 | G14: 8、对企业资本性支出
A15: 4、事业单位经营收入 | C15: 9、社会保险基金支出 | E15: (3)对个人和家庭补助 | G15: 9、对个人和家庭补助 | H15: =F10 -> 84
A16: 5、附属单位上缴收入 | C16: 10、医疗卫生与计划生育支出 | E16: (4)债务利息及费用支出 | G16: 10、对社会保障基金补助
A17: 6、其他收入 | C17: 11、节能环保支出 | E17: (5)资本性支出(基本建设) | G17: 11、债务利息及费用支出
C18: 12、城乡社区支出 | E18: (6)资本性支出 | G18: 12、债务还本支出
C19: 13、农林水支出 | E19: (7)对企业补助(基本建设) | G19: 13、转移性支出
C20: 14、交通运输支出 | E20: (8)对企业补助 | G20: 14、预备费及预留
C21: 15、资源勘探信息等支出 | E21: (9)对社会保障基金补助 | G21: 15、其他支出
C22: 16、商业服务业等支出 | E22: (10)其他支出
C23: 17、金融支出 | E23: 3、上缴上级支出
C24: 18、援助其他地区支出 | E24: 4、事业单位经营支出
C25: 19、国土海洋气象等支出 | D25: 97817 | E25: 5、对附属单位补助支出
C26: 20、住房保障支出
C27: 21、粮油物资储备支出
C28: 22、灾害防治及应急管理支出
C29: 23、预备费
C30: 24、其他支出
C31: 25、转移性支出
C32: 26、债务还本支出
C33: 27、债务付息支出
C34: 28、债务发行费用支出
A38: 本年收入合计 | B38: =SUM(B6,B18) -> 97817 | C38: 本年支出合计 | D38: =SUM(D6,D35) -> 97817 | E38: 本年支出合计 | F38: =SUM(F6,F26) -> 97817 | G38: 本年支出合计 | H38: =SUM(H6,H26) -> 97817
A39: 用事业基金弥补收支差额 | C39: 结转下年 | D39: =SUM(B45)-SUM(D38)-SUM(D40) -> 0 | E39: 结转下年 | F39: =D39 -> 0 | G39: 结转下年 | H39: =F39 -> 0
A40: 上年实户资金余额 | C40: 未安排支出的实户资金 | E40: 未安排支出的实户资金 | G40: 未安排支出的实户资金
A41: 上年结转
A42: 其中：财政拨款资金结转
A43: 非财政拨款资金结余
A45: 收入总计 | B45: =SUM(B38,B39,B40) -> 97817 | C45: 支出总计 | D45: =SUM(D38,D39,D40) -> 97817 | E45: 支出总计 | F45: =SUM(F38,F39,F40) -> 97817 | G45: 支出总计 | H45: =SUM(H38,H39,H40) -> 97817

Sheet 表2-部门综合预算收入总表
A1: 表2
A2: 2019年部门综合预算收入总表
O3: 单位：百元
A4: 单位编码 | B4: 单位名称 | C4: 总计 | D4: 部门预算
D5: 合计 | E5: 一般公共预算拨款 | G5: 政府性基金拨款 | H5: 上级补助收入 | I5: 事业收入 | J5: 事业单位经营收入 | K5: 对附属单位上缴收入 | L5: 用事业基金弥补收支差额 | M5: 上年结转 | N5: 上年实户资金余额（非财政性资金） | O5: 其他收入
E6: 小计 | F6: 其中：专项资金列入部门预算项目
A7: ** | B7: ** | C7: 1 | D7: 2 | E7: 3 | F7: 4 | G7: 5 | H7: 6 | I7: 7 | J7: 8 | K7: 9 | L7: 10 | M7: 11 | N7: 12 | O7: 13
B8: 国土局 | C8: =D8 -> 97817 | D8: =E8 -> 97817 | E8: 97817

Sheet 表3-部门综合预算支出总表
A1: 表3
A2: 2019年部门综合预算支出总表
M3: 单位：百元
A4: 单位编码 | B4: 单位名称 | C4: 总计 | D4: 部门预算
D5: 合计 | E5: 公共预算拨款 | G5: 政府性基金拨款 | H5: 事业收入 | I5: 事业单位经营收入 | J5: 对附属单位上缴收入 | K5: 上年实户资金余额 | L5: 其他收入 | M5: 上年结转
E6: 小计 | F6: 其中：专项资金列入部门预算的项目
A7: ** | B7: ** | C7: 1 | D7: 2 | E7: 3 | F7: 4 | G7: 5 | H7: 6 | I7: 7 | J7: 8 | K7: 9 | L7: 10 | M7: 11
B8: 国土局 | C8: =D8 -> 97817 | D8: =E8 -> 97817 | E8: 97817

Sheet 表4-部门综合预算财政拨款收支总表
A1: 表4
A2: 2019年部门综合预算财政拨款收支总表
F3: 单位：百元
A4: 收 入 | C4: 支 出
A5: 项 目 | B5: 预算数 | C5: 支出功能分类科目（按大类） | D5: 预算数 | E5: 支出经济分类科目（按大类） | F5: 预算数 | G5: 政府预算支出经济分类科目（按大类） | H5: 预算数
A6: 一、财政拨款 | B6: =B7 -> 97817 | C6: 一、财政拨款 | D6: =SUM(D7:D34) -> 97817 | E6: 一、财政拨款 | F6: ='表1-部门综合预算收支总表'!F6 -> 97817 | G6: 一、部门预算 | H6: =SUM(H7:H21) -> 97817
A7: 1、一般公共预算拨款 | B7: ='表1-部门综合预算收支总表'!B8 -> 97817 | C7: 1、一般公共服务支出 | D7: ='表1-部门综合预算收支总表'!D7 -> 0 | E7: 1、人员经费和公用经费支出 | F7: ='表1-部门综合预算收支总表'!F7 -> 94317 | G7: 1、机关工资福利支出 | H7: =F8 -> 89945
A8: 其中：专项资金列入部门预算的项目 | C8: 2、外交支出 | D8: ='表1-部门综合预算收支总表'!D8 -> 0 | E8: (1)工资福利支出 | F8: ='表1-部门综合预算收支总表'!F8 -> 89945 | G8: 2、机关商品和服务支出 | H8: =F9+F12 -> 7788
A9: 2、政府性基金拨款 | C9: 3、国防支出 | D9: ='表1-部门综合预算收支总表'!D9 -> 0 | E9: (2)商品和服务支出 | F9: ='表1-部门综合预算收支总表'!F9 -> 4288 | G9: 3、机关资本性支出（一）
A10: 3、国有资本经营预算收入 | C10: 4、公共安全支出 | D10: ='表1-部门综合预算收支总表'!D10 -> 0 | E10: (3)对个人和家庭的补助 | F10: ='表1-部门综合预算收支总表'!F10 -> 84 | G10: 4、机关资本性支出（二）
C11: 5、教育支出 | D11: ='表1-部门综合预算收支总表'!D11 -> 0 | E11: (4)资本性支出 | F11: ='表1-部门综合预算收支总表'!F11 -> 0 | G11: 5、对事业单位经常性补助
C12: 6、科学技术支出 | D12: ='表1-部门综合预算收支总表'!D12 -> 0 | E12: 2、专项业务经费支出 | F12: ='表1-部门综合预算收支总表'!F12 -> 3500 | G12: 6、对事业单位资本性补助
C13: 7、文化体育与传媒支出 | D13: ='表1-部门综合预算收支总表'!D13 -> 0 | E13: (1)工资福利支出 | G13: 7、对企业补助
C14: 8、社会保障和就业支出 | D14: ='表1-部门综合预算收支总表'!D14 -> 0 | E14: (2)商品和服务支出 | G14: 8、对企业资本性支出
C15: 9、社会保险基金支出 | D15: ='表1-部门综合预算收支总表'!D15 -> 0 | E15: (3)对个人和家庭补助 | G15: 9、对个人和家庭补助 | H15: =F10 -> 84
C16: 10、医疗卫生与计划生育支出 | D16: ='表1-部门综合预算收支总表'!D16 -> 0 | E16: (4)债务利息及费用支出 | G16: 10、对社会保障基金补助
C17: 11、节能环保支出 | D17: ='表1-部门综合预算收支总表'!D17 -> 0 | E17: (5)资本性支出(基本建设) | G17: 11、债务利息及费用支出
C18: 12、城乡社区支出 | D18: ='表1-部门综合预算收支总表'!D18 -> 0 | E18: (6)资本性支出 | G18: 12、债务还本支出
C19: 13、农林水支出 | D19: ='表1-部门综合预算收支总表'!D19 -> 0 | E19: (7)对企业补助(基本建设) | G19: 13、转移性支出
C20: 14、交通运输支出 | D20: ='表1-部门综合预算收支总表'!D20 -> 0 | E20: (8)对企业补助 | G20: 14、预备费及预留
C21: 15、资源勘探信息等支出 | D21: ='表1-部门综合预算收支总表'!D21 -> 0 | E21: (9)对社会保障基金补助 | G21: 15、其他支出
C22: 16、商业服务业等支出 | D22: ='表1-部门综合预算收支总表'!D22 -> 0 | E22: (10)其他支出
C23: 17、金融支出 | D23: ='表1-部门综合预算收支总表'!D23 -> 0 | E23: 3、上缴上级支出
C24: 18、援助其他地区支出 | D24: ='表1-部门综合预算收支总表'!D24 -> 0 | E24: 4、事业单位经营支出
C25: 19、国土海洋气象等支出 | D25: ='表1-部门综合预算收支总表'!D25 -> 97817 | E25: 5、对附属单位补助支出
C26: 20、住房保障支出 | D26: ='表1-部门综合预算收支总表'!D26 -> 0
C27: 21、粮油物资储备支出 | D27: ='表1-部门综合预算收支总表'!D27 -> 0
C28: 22、灾害防治及应急管理支出 | D28: ='表1-部门综合预算收支总表'!D28 -> 0
C29: 23、预备费 | D29: ='表1-部门综合预算收支总表'!D29 -> 0
C30: 24、其他支出 | D30: ='表1-部门综合预算收支总表'!D30 -> 0
C31: 25、转移性支出 | D31: ='表1-部门综合预算收支总表'!D31 -> 0
C32: 26、债务还本支出 | D32: ='表1-部门综合预算收支总表'!D32 -> 0
C33: 27、债务付息支出 | D33: ='表1-部门综合预算收支总表'!D33 -> 0
C34: 28、债务发行费用支出 | D34: ='表1-部门综合预算收支总表'!D34 -> 0
A36: 本年收入合计 | B36: =SUM(B6) -> 97817 | C36: 本年支出合计 | D36: =SUM(D6) -> 97817 | E36: 本年支出合计 | F36: =SUM(F6) -> 97817 | G36: 本年支出合计 | H36: =SUM(H6) -> 97817
A37: 上年结转 | C37: 结转下年 | D37: =SUM(B41)-SUM(D36) -> 0 | E37: 结转下年 | F37: =D37 -> 0 | G37: 结转下年 | H37: =F37 -> 0
A38: 其中：财政拨款资金结转
A39: 非财政拨款资金结余
A41: 收入总计 | B41: =SUM(B36,B37) -> 97817 | C41: 支出总计 | D41: =SUM(D36,D37) -> 97817 | E41: 支出总计 | F41: =SUM(F36,F37) -> 97817 | G41: 支出总计 | H41: =SUM(H36,H37) -> 97817

Sheet 表5-部门综合预算一般公共预算支出明细表（按支出功能分类科目）
A1: 表5
A2: 2019年部门综合预算一般公共预算支出明细表（按支出功能分类科目）
G3: 单位：百元
A4: 功能科目编码 | B4: 功能科目名称 | C4: 合计 | D4: 人员经费支出 | E4: 公用经费支出 | F4: 专项业务经费支出 | G4: 备注
A5: ** | B5: ** | C5: 1 | D5: 2 | E5: 3 | F5: 4 | G5: **
A6: 220 | B6: 国土海洋气象等支出 | C6: =C7 -> 97817 | D6: 90029 | E6: 4288 | F6: 3500
A7: 22001 | B7: 国土资源事务 | C7: =C9+C8+C10 -> 97817 | D7: =D9+D8 -> 90029 | E7: 4288 | F7: 3500
A8: 2200101 | B8: 行政运行 | C8: =D8+E8+F8 -> 94317 | D8: 90029 | E8: 4288
A9: 2200102 | B9: 一般行政管理事务 | C9: =D9+E9+F9 -> 3500 | F9: 3500

Sheet 表6-部门综合预算一般公共预算支出明细表（按支出经济分类科目）
A1: 表6
A2: 2019年部门综合预算一般公共预算支出明细表（按支出经济分类科目）
I3: 单位：百元
A4: 经济科目编码 | B4: 经济科目名称 | C4: 政府经济科目编码 | D4: 政府经济科目名称 | E4: 合计 | F4: 人员经费支出 | G4: 公用经费支出 | H4: 专项业务经费支出 | I4: 备注
A5: 合计 | E5: 97817 | F5: 90029 | G5: 4288 | H5: 3500
A6: 301 | B6: 工资福利支出 | C6: 501 | D6: 机关工资福利支出 | E6: 84125 | F6: 84125 | G6: 0 | H6: 0
A7: 01 | B7: 基本工资 | C7: 50101 | D7: 工资奖金津补贴 | E7: 31250 | F7: 31250 | I7: 基本工资
A8: 02 | B8: 津贴补贴 | E8: 24461 | F8: 24461 | I8: 统一津补贴、津贴补贴、改革性补贴、特殊岗位津贴、乡镇干部工作补贴、取暖费、降温费
A9: 03 | B9: 奖金 | E9: 2200 | F9: 2200 | I9: 行政单位年终一次性奖金
A10: 07 | B10: 绩效工资 | E10: 3118 | F10: 3118 | I10: 事业单位绩效总量
A11: 08 | B11: 机关事业单位基本养老保险缴费 | C11: 50102 | D11: 社会保障缴费 | E11: 11449 | F11: 11449
A12: 09 | B12: 职业年金缴费 | E12: 0
A13: 10 | B13: 职工基本医疗保险缴费 | E13: 3279 | F13: 3279
A14: 11 | B14: 公务员医疗补助缴费 | E14: 1323 | F14: 1323
A15: 12 | B15: 其他社会保障缴费 | E15: 437 | F15: 437
A16: 13 | B16: 住房公积金 | C16: 50103 | D16: 住房公积金 | E16: 6557 | F16: 6557
A17: 14 | B17: 医疗费 | C17: 50199 | D17: 其他工资福利支出 | E17: 0
A18: 99 | B18: 其他工资福利支出 | E18: 51 | F18: 51 | I18: 独子费
A19: 302 | B19: 商品和服务支出 | C19: 502 | D19: 机关商品和服务支出 | E19: 13608 | F19: 5820 | G19: 4288 | H19: 3500
A20: 01 | B20: 办公费 | E20: 1030 | F20: 0 | G20: 230 | H20: 800
A21: 02 | B21: 印刷费 | E21: 400 | F21: 0 | G21: 200 | H21: 200
A22: 03 | B22: 咨询费 | E22: 0 | F22: 0 | G22: 0 | H22: 0
A23: 04 | B23: 手续费 | E23: 0 | F23: 0 | G23: 0 | H23: 0
A24: 05 | B24: 水费 | E24: 120 | F24: 0 | G24: 120 | H24: 0
A25: 06 | B25: 电费 | E25: 840 | F25: 0 | G25: 840 | H25: 0
A26: 07 | B26: 邮电费 | E26: 0 | F26: 0 | G26: 0 | H26: 0
A27: 08 | B27: 取暖费 | E27: 0 | F27: 0 | G27: 0 | H27: 0
A28: 09 | B28: 物业管理费 | E28: 0 | F28: 0 | G28: 0 | H28: 0
A29: 11 | B29: 差旅费 | E29: 1450 | F29: 0 | G29: 450 | H29: 1000
A30: 12 | B30: 因公出国（境）费用 | E30: 0 | F30: 0 | G30: 0 | H30: 0
A31: 13 | B31: 维修（护）费 | E31: 450 | F31: 0 | G31: 150 | H31: 300
A32: 14 | B32: 租赁费 | E32: 0 | F32: 0 | G32: 0 | H32: 0
A33: 15 | B33: 会议费 | E33: 0 | F33: 0 | G33: 0 | H33: 0
A34: 16 | B34: 培训费 | E34: 0 | F34: 0 | G34: 0 | H34: 0
A35: 17 | B35: 公务接待费 | E35: 648 | F35: 0 | G35: 648 | H35: 0
A36: 18 | B36: 专用材料费 | E36: 0 | F36: 0 | G36: 0 | H36: 0
A37: 19 | B37: 差旅费
A38: 24 | B38: 被装购置费 | E38: 0 | F38: 0 | G38: 0 | H38: 0
A39: 25 | B39: 专用燃料费 | E39: 0 | F39: 0 | G39: 0 | H39: 0
A40: 26 | B40: 劳务费 | E40: 1200 | F40: 0 | G40: 0 | H40: 1200
A41: 27 | B41: 委托业务费 | E41: 0 | F41: 0 | G41: 0 | H41: 0
A42: 28 | B42: 工会经费 | E42: 1000 | F42: 0 | G42: 1000 | H42: 0
A43: 29 | B43: 福利费 （体检费） | E43: 250 | F43: 0 | G43: 250 | H43: 0
A44: 31 | B44: 公务用车运行维护费 | E44: 400 | F44: 0 | G44: 400 | H44: 0
A45: 39 | B45: 其他交通费用 | E45: 5820 | F45: 5820 | H45: 0 | I45: 公务交通补贴
A46: 40 | B46: 税金及附加费用 | E46: 0 | F46: 0 | G46: 0 | H46: 0
A47: 99 | B47: 其他商品和服务支出 | E47: 0 | F47: 0 | G47: 0 | H47: 0 | I47: 专项工作经费
A48: 303 | B48: 对个人和家庭的补助 | C48: 509 | D48: 对个人和家庭的补助 | E48: 84 | F48: 84 | G48: 0 | H48: 0
A49: 01 | B49: 离休费 | E49: 0 | F49: 0 | G49: 0 | H49: 0
A50: 02 | B50: 退休费 | E50: 0 | F50: 0 | G50: 0 | H50: 0
A51: 03 | B51: 退职（役）费 | E51: 0 | F51: 0 | G51: 0 | H51: 0
A52: 04 | B52: 抚恤金 | E52: 0 | F52: 0 | G52: 0 | H52: 0 | I52: 伤残抚恤
A53: 05 | B53: 生活补助 | E53: 84 | F53: 84 | G53: 0 | H53: 0 | I53: 遗属生活补助
A54: 99 | B54: 其他对个人和家庭的补助 | C54: 50999 | D54: 对个人和家庭的补助 | E54: 0 | F54: 0 | G54: 0 | H54: 0

Sheet 表7-部门综合预算一般公共预算基本支出明细表（按支出功能科目）
A1: 表7
A2: 2019年部门综合预算一般公共预算基本支出明细表（按支出功能分类科目）
F3: 单位：百元
A4: 功能科目编码 | B4: 功能科目名称 | C4: 合计 | D4: 人员经费支出 | E4: 公用经费支出 | F4: 备注
A5: ** | B5: ** | C5: 1 | D5: 2 | E5: 3 | F5: **
A6: 220 | B6: 国土海洋气象等支出 | C6: =C7 -> 97817 | D6: =D7 -> 90029 | E6: =E7 -> 7788
A7: 22001 | B7: 国土资源事务 | C7: =C9+C8+C10 -> 97817 | D7: =D9+D8 -> 90029 | E7: =E9+E8 -> 7788
A8: 2200101 | B8: 行政运行 | C8: =D8+E8+F8 -> 94317 | D8: ='表5-部门综合预算一般公共预算支出明细表（按支出功能分类科目）'!D8 -> 90029 | E8: ='表5-部门综合预算一般公共预算支出明细表（按支出功能分类科目）'!E8 -> 4288
A9: 2200102 | B9: 一般行政管理事务 | C9: =D9+E9+F9 -> 3500 | E9: ='表5-部门综合预算一般公共预算支出明细表（按支出功能分类科目）'!F9 -> 3500

Sheet 表8-部门综合预一般公共预算基本支出明细表（按经济分类科目分）
A1: 表8
A2: 2019年部门综合预算一般公共预算支出明细表（按支出经济分类科目）
H3: 单位：百元
A4: 经济科目编码 | B4: 经济科目名称 | C4: 政府经济科目编码 | D4: 政府经济科目名称 | E4: 合计 | F4: 人员经费支出 | G4: 公用经费支出 | H4: 备注
A5: 合计 | E5: =F5+G5 -> 97817 | F5: =F6+F19+F47 -> 90029 | G5: =G6+G19+G47 -> 7788
A6: 301 | B6: 工资福利支出 | C6: 501 | D6: 机关工资福利支出 | E6: =F6+G6 -> 84125 | F6: =SUM(F7:F18) -> 84125 | G6: =SUM(G7:G18) -> 0
A7: 01 | B7: 基本工资 | C7: 50101 | D7: 工资奖金津补贴 | E7: 31250 | F7: 31250 | H7: 基本工资
A8: 02 | B8: 津贴补贴 | E8: 24461 | F8: 24461 | H8: 统一津补贴、津贴补贴、改革性补贴、特殊岗位津贴、乡镇干部工作补贴、取暖费、降温费
A9: 03 | B9: 奖金 | E9: 2200 | F9: 2200 | H9: 行政单位年终一次性奖金
A10: 07 | B10: 绩效工资 | E10: 3118 | F10: 3118 | H10: 事业单位绩效总量
A11: 08 | B11: 机关事业单位基本养老保险缴费 | C11: 50102 | D11: 社会保障缴费 | E11: 11449 | F11: 11449
A12: 09 | B12: 职业年金缴费 | E12: 0
A13: 10 | B13: 职工基本医疗保险缴费 | E13: 3279 | F13: 3279
A14: 11 | B14: 公务员医疗补助缴费 | E14: 1323 | F14: 1323
A15: 12 | B15: 其他社会保障缴费 | E15: 437 | F15: 437
A16: 13 | B16: 住房公积金 | C16: 50103 | D16: 住房公积金 | E16: 6557 | F16: 6557
A17: 14 | B17: 医疗费 | C17: 50199 | D17: 其他工资福利支出 | E17: 0
A18: 99 | B18: 其他工资福利支出 | E18: 51 | F18: 51 | H18: 独子费
A19: 302 | B19: 商品和服务支出 | C19: 502 | D19: 机关商品和服务支出 | E19: 13608 | F19: =SUM(F20:F46) -> 5820 | G19: =SUM(G20:G46) -> 7788
A20: 01 | B20: 办公费 | E20: 230 | F20: 0 | G20: 230
A21: 02 | B21: 印刷费 | E21: 200 | F21: 0 | G21: 200
A22: 03 | B22: 咨询费 | E22: 0 | F22: 0 | G22: 0
A23: 04 | B23: 手续费 | E23: 0 | F23: 0 | G23: 0
A24: 05 | B24: 水费 | E24: 120 | F24: 0 | G24: 120
A25: 06 | B25: 电费 | E25: 840 | F25: 0 | G25: 840
A26: 07 | B26: 邮电费 | E26: 0 | F26: 0 | G26: 0
A27: 08 | B27: 取暖费 | E27: 0 | F27: 0 | G27: 0
A28: 09 | B28: 物业管理费 | E28: 0 | F28: 0 | G28: 0
A29: 11 | B29: 差旅费 | E29: 450 | F29: 0 | G29: 450
A30: 12 | B30: 因公出国（境）费用 | E30: 0 | F30: 0 | G30: 0
A31: 13 | B31: 维修（护）费 | E31: 150 | F31: 0 | G31: 150
A32: 14 | B32: 租赁费 | E32: 0 | F32: 0 | G32: 0
A33: 15 | B33: 会议费 | E33: 0 | F33: 0 | G33: 0
A34: 16 | B34: 培训费 | E34: 0 | F34: 0 | G34: 0
A35: 17 | B35: 公务接待费 | E35: 648 | F35: 0 | G35: 648
A36: 18 | B36: 专用材料费 | E36: 0 | F36: 0 | G36: 0
A37: 24 | B37: 被装购置费 | E37: 0 | F37: 0 | G37: 0
A38: 25 | B38: 专用燃料费 | E38: 0 | F38: 0 | G38: 0
A39: 26 | B39: 劳务费 | E39: 0 | F39: 0 | G39: 0
A40: 27 | B40: 委托业务费 | E40: 0 | F40: 0 | G40: 0
A41: 28 | B41: 工会经费 | E41: 1000 | F41: 0 | G41: 1000
A42: 29 | B42: 福利费 （体检费） | E42: 250 | F42: 0 | G42: 250
A43: 31 | B43: 公务用车运行维护费 | E43: 400 | F43: 0 | G43: 400
A44: 39 | B44: 其他交通费用 | E44: 5820 | F44: 5820 | H44: 公务交通补贴
A45: 40 | B45: 税金及附加费用 | E45: 0 | F45: 0 | G45: 0
A46: 99 | B46: 其他商品和服务支出 | E46: 3500 | F46: 0 | G46: 3500 | H46: 专项工作经费
A47: 303 | B47: 对个人和家庭的补助 | C47: 509 | D47: 对个人和家庭的补助 | E47: 84 | F47: =SUM(F48:F53) -> 84 | G47: =SUM(G48:G53) -> 0
A48: 01 | B48: 离休费 | C48: 50905 | D48: 离退休费 | E48: 0 | F48: 0 | G48: 0
A49: 02 | B49: 退休费 | E49: 0 | F49: 0 | G49: 0
A50: 03 | B50: 退职（役）费 | E50: 0 | F50: 0 | G50: 0
A51: 04 | B51: 抚恤金 | C51: 50901 | D51: 社会福利和救助 | E51: 0 | F51: 0 | G51: 0 | H51: 伤残抚恤
A52: 05 | B52: 生活补助 | E52: 84 | F52: 84 | G52: 0 | H52: 遗属生活补助
A53: 99 | B53: 其他对个人和家庭的补助 | C53: 50999 | D53: 对个人和家庭的补助 | E53: 0 | F53: 0 | G53: 0

Sheet 表9-部门综合预算政府性基金收支表
A1: 表9
A2: 2019年部门综合预算政府性基金收支表
H3: 单位：百元
A4: 收 入 | C4: 支 出
A5: 项 目 | B5: 预算数 | C5: 支出功能分类科目（按大类） | D5: 预算数 | E5: 支出经济分类科目（按大类） | F5: 预算数 | G5: 政府预算支出经济分类科目（按大类） | H5: 预算数
A6: 一、政府性基金拨款 | C6: 一、科学技术支出 | E6: 一、人员经费和公用经费支出 | G6: 一、部门预算
C7: 二、文化体育与传媒支出 | E7: 工资福利支出 | G7: 1、机关工资福利支出
C8: 三、社会保障和就业支出 | E8: 商品和服务支出 | G8: 2、机关商品和服务支出
C9: 四、节能环保支出 | E9: 对个人和家庭的补助 | G9: 3、机关资本性支出（一）
C10: 五、城乡社区支出 | E10: 其他资本性支出 | G10: 4、机关资本性支出（二）
C11: 六、农林水支出 | E11: 二、专项业务经费支出 | G11: 5、对事业单位经常性补助
C12: 七、交通运输支出 | E12: 工资福利支出 | G12: 6、对事业单位资本性补助
C13: 八、资源勘探信息等支出 | E13: 商品和服务支出 | G13: 7、对企业补助
C14: 九、商业服务等支出 | E14: 对个人和家庭的补助 | G14: 8、对企业资本性支出
C15: 十、金融支出 | E15: 债务付息及费用支出 | G15: 9、对个人和家庭补助
C16: 十一、其他支出 | E16: 资本性支出(基本建设) | G16: 10、对社会保障基金补助
C17: 十二、转移性支出 | E17: 资本性支出 | G17: 11、债务利息及费用支出
C18: 十三、债务还本支出 | E18: 对企业补助(基本建设） | G18: 12、债务还本支出
C19: 十四、债务付息支出 | E19: 对企业补助 | G19: 13、转移性支出
C20: 十五、债务发行费用支出 | E20: 对社会保障基金补助 | G20: 14、预备费及预留
E21: 其他支出 | G21: 15、其他支出
E22: 三、上缴上级支出
E23: 四、事业单位经营支出
E24: 五、对附属单位补助支出
A26: 本年收入合计 | B26: =SUM(B6,B9,B10,B12,B13,B14,B15) -> 0 | C26: 本年支出合计 | D26: =SUM(D6:D20) -> 0 | E26: 本年支出合计 | F26: =SUM(F6,F11,F21,F22,F23) -> 0 | G26: 本年支出合计 | H26: =SUM(H6,H11,H21,H22,H23) -> 0

Sheet 表10-部门综合预算专项业务经费支出表
A1: 表10
A2: 2019年部门综合预算专项业务经费支出表
D3: 单位：百元
A4: 单位编码 | B4: 单位（项目）名称 | C4: 项目金额 | D4: 项目简介
A5: ** | B5: ** | C5: ** | D5: **
B6: 国土局 | C6: 3500 | D6: 专项工作经费35万元（包括国土管理工作、业务工作会议费等）。

Sheet 表11-2019年部门预算财政拨款结转资金支出表
A1: 表11
A2: 2019年部门综合预算财政拨款结转资金支出表
K3: 单位：百元
A4: 预算单位代码 | B4: 预算单位名称 | C4: 预算项目名称 | D4: 金额 | E4: 功能分类科目代码 | F4: 功能分类科目名称 | G4: 政府经济分类科目代码 | H4: 政府经济分类科目名称 | I4: 项目类别 | J4: 资金性质 | K4: 备注
A5: 1 | B5: 2 | C5: 3 | D5: 4 | E5: 5 | F5: 6 | G5: 9 | H5: 10 | I5: 11 | J5: 12
A14: 注：项目类别指基本支出或项目支出；资金性质指一般公共预算支出、政府性基金预算支出、国有资本经营预算支出等。

Sheet 表12-部门综合预算政府采购（资产配置、购买服务）预算表
A1: 表12
A2: 2019年部门综合预算政府采购（资产配置、购买服务）预算表
N3: 单位：百元
A4: 科目编码 | D4: 单位编码 | E4: 采购项目 | F4: 采购目录 | G4: 购买服务内容 | H4: 规格型号 | I4: 数量 | J4: 经济科目编码 | L4: 实施采购时间 | M4: 预算金额 | N4: 说明
A5: 类 | B5: 款 | C5: 项 | J5: 类 | K5: 款
A6: ** | B6: ** | C6: ** | D6: ** | E6: ** | F6: ** | G6: ** | H6: ** | I6: ** | J6: ** | K6: ** | L6: ** | M6: 2365 | N6: **
A7: 220 | B7: 01 | C7: 01 | D7: 125001 | E7: 一、货物类小计 | J7: 220 | K7: 01 | M7: 1865
A8: 220 | B8: 01 | C8: 01 | E8: 1、计算机 | J8: 220 | K8: 01 | M8: 360
A9: 220 | B9: 01 | C9: 01 | F9: 台式电脑 | G9: 台式电脑 | I9: 5 | J9: 220 | K9: 01 | L9: 2019.1-12 | M9: 200
A10: 220 | B10: 01 | C10: 01 | F10: 笔记本电脑 | G10: 笔记本电脑 | I10: 2 | J10: 220 | K10: 01 | L10: 2019.1-12 | M10: 160
E11: 2、打印设备 | M11: 425
A12: 220 | B12: 01 | C12: 01 | F12: 打印机 | G12: 打印机 | I12: 5 | J12: 220 | K12: 01 | L12: 2019.1-12 | M12: 125
A13: 220 | B13: 01 | C13: 01 | F13: 复印机 | G13: 复印机 | I13: 1 | J13: 220 | K13: 01 | L13: 2019.1-12 | M13: 250
A14: 220 | B14: 01 | C14: 01 | F14: 扫描仪 | G14: 扫描仪 | I14: 2 | J14: 220 | K14: 01 | L14: 2019.1-12 | M14: 30
A15: 220 | B15: 01 | C15: 01 | F15: 传真机 | G15: 传真机 | I15: 1 | J15: 220 | K15: 01 | L15: 2019.1-12 | M15: 20
E16: 3、空调 | M16: 175
A17: 220 | B17: 01 | C17: 01 | F17: 空调 | G17: 空调 | I17: 3 | J17: 220 | K17: 01 | L17: 2019.1-12 | M17: 75
A18: 220 | B18: 01 | C18: 01 | F18: 空调 | G18: 空调 | I18: 2 | J18: 220 | K18: 01 | L18: 2019.1-12 | M18: 100
E19: 4、家具用具 | M19: 425
A20: 220 | B20: 01 | C20: 01 | F20: 办公室家具 | G20: 办公室家具 | I20: 5 | J20: 220 | K20: 01 | L20: 2019.1-12 | M20: 125
A21: 220 | B21: 01 | C21: 01 | F21: 会议室家具 | G21: 会议室家具 | I21: 50 | J21: 220 | K21: 01 | L21: 2019.1-12 | M21: 300
A22: 220 | B22: 01 | C22: 01 | E22: 5、宣传资料印刷 | J22: 220 | K22: 01 | M22: 480
A23: 220 | B23: 01 | C23: 01 | F23: 宣传资料 | G23: 宣传资料 | I23: 8000 | J23: 220 | K23: 01 | L23: 2019.1-12 | M23: 320
A24: 220 | B24: 01 | C24: 01 | F24: 发文稿纸 | G24: 发文稿纸 | I24: 400 | J24: 220 | K24: 01 | L24: 2019.1-12 | M24: 28
A25: 220 | B25: 01 | C25: 01 | F25: 征地协议等 | G25: 征地协议等 | I25: 2000 | J25: 220 | K25: 01 | L25: 2019.1-12 | M25: 100
A26: 220 | B26: 01 | C26: 01 | F26: 便签 | G26: 便签 | I26: 200 | J26: 220 | K26: 01 | L26: 2019.1-12 | M26: 7
A27: 220 | B27: 01 | C27: 01 | F27: 各种审批单 | G27: 各种审批单 | I27: 500 | J27: 220 | K27: 01 | L27: 2019.1-12 | M27: 25
A28: 220 | B28: 01 | C28: 01 | E28: 二、工程类小计 | J28: 220 | K28: 01 | M28: 500
A29: 220 | B29: 01 | C29: 01 | E29: 1、办公楼维修 | F29: 办公楼维修 | G29: 办公楼维修 | J29: 220 | K29: 01 | L29: 2019.1-12 | M29: 500

Sheet 表13-部门综合预算一般公共预算拨款“三公”经费及会议培训费表
A1: 表13
A2: 2019年部门综合预算一般公共预算拨款“三公”经费及会议费、培训费支出预算表
AC3: 单位：百元
A4: 单位编码 | B4: 单位名称 | C4: 2018年 | L4: 2019年 | U4: 增减变化情况
C5: 合计 | D5: 一般公共预算拨款安排的“三公”经费预算 | J5: 会议费 | K5: 培训费 | L5: 合计 | M5: 一般公共预算拨款安排的“三公”经费预算 | S5: 会议费 | T5: 培训费 | U5: 合计 | V5: 一般公共预算拨款安排的“三公”经费预算 | AB5: 会议费 | AC5: 培训费
D6: 小计 | E6: 因公出国（境）费用 | F6: 公务接待费 | G6: 公务用车购置及运行维护费 | M6: 小计 | N6: 因公出国（境）费用 | O6: 公务接待费 | P6: 公务用车购置及运行维护费 | V6: 小计 | W6: 因公出国（境）费用 | X6: 公务接待费 | Y6: 公务用车购置及运行维护费
G7: 小计 | H7: 公务用车购置费 | I7: 公务用车运行维护费 | P7: 小计 | Q7: 公务用车购置费 | R7: 公务用车运行维护费 | Y7: 小计 | Z7: 公务用车购置费 | AA7: 公务用车运行维护费
A8: ** | B8: ** | C8: 1 | D8: 2 | E8: 3 | F8: 4 | G8: 5 | H8: 6 | I8: 7 | J8: 8 | K8: 9 | L8: 10 | M8: 11 | N8: 12 | O8: 13 | P8: 14 | Q8: 15 | R8: 16 | S8: 17 | T8: 18 | U8: 19=10-1 | V8: 20=11-2 | W8: 21=12-3 | X8: 22=13-4 | Y8: 23=14-5 | Z8: 24=15-6 | AA8: 25=16-7 | AB8: 26=17-8 | AC8: 27=18-9
B9: 自然资源局 | C9: =D9+G9 -> 708 | D9: =SUM(E9:F9) -> 708 | F9: 708 | G9: =SUM(H9:I9) -> 0 | L9: =M9+P9 -> 1048 | M9: =SUM(N9:O9) -> 648 | O9: 648 | P9: =SUM(Q9:R9) -> 400 | R9: 400 | V9: =L9-C9 -> 340 | W9: =M9-D9 -> -60 | X9: 0 | Y9: -60 | AA9: 400 | AC9: 0

Sheet 表14-部门专项业务经费一级项目绩效目标表
A1: 表14
A2: 2019年部门专项业务经费一级项目绩效目标表
A3: 专项（项目）名称 | D3: 履职专项业务经费
A4: 主管部门 | D4: 紫阳县自然资源局 | F4: 实施期限 | H4: 2019.1-2019.12
A5: 资金金额 （百元） | D5: 实施期资金总额： | E5: 3500 | F5: 年度资金总额： | H5: 3500
D6: 其中：财政拨款 | E6: 3500 | F6: 其中：财政拨款 | H6: 3500
D7: 其他资金 | F7: 其他资金
A8: 总 体 目 标 | B8: 实施期总目标 | F8: 年度目标
B9: 结合我县自然资源发展实际需求，提升行业管理能力和服务水平，满足自然资源发展，保证正常办公需要，高标准完成年度各类考核目标任务 。 | F9: 结合我县自然资源发展实际需求，提升行业管理能力和服务水平，满足自然资源发展，保证正常办公需要，高标准完成年度各类考核目标任务 。
A10: 绩 效 指 标 | B10: 一级 指标 | C10: 二级指标 | D10: 指标内容 | E10: 指标值 | F10: 二级指标 | G10: 指标内容 | I10: 指标值
B11: 产 出 指 标 | C11: 数量指标 | D11: 按部门职责做好日常行政管理工作 | E11: 部门预算单位按职责完成 | F11: 数量指标 | G11: 指标1：按部门职责做好日常行政管理工作 | I11: 部门预算单位按职责完成
D12: 优化提升营商环境 | E12: 打造不动产登记便民利民示范窗口，实现“一窗式”办理。 | G12: 指标2：优化提升营商环境 | I12: 打造不动产登记便民利民示范窗口，实现“一窗式”办理。
C13: 质量指标 | D13: 行政许可实施规范率 | E13: 1 | F13: 质量指标 | G13: 行政许可实施规范率 | I13: 1
C14: 时效指标 | D14: 自然资源部门行政管理工作职能进度 | E14: 全年 | F14: 时效指标 | G14: 自然资源部门行政管理工作职能进度 | I14: 全年
B15: 效 益 指 标 | C15: 经济效益 指标 | D15: 严格控制行政成本、节约财政资金 | E15: 达到预期 | F15: 经济效益 指标 | G15: 严格控制行政成本、节约财政资金 | I15: 达到预期
C16: 社会效益 指标 | D16: 行业管理水平和服务能力进一步提高 | E16: 提高 | F16: 社会效益 指标 | G16: 行业管理水平和服务能力进一步提高
B17: 满意度指标 | C17: 服务对象 满意度指标 | D17: 服务对象满意度 | E17: 1 | F17: 服务对象 满意度指标 | G17: 服务对象满意度 | I17: 1
A18: 备 注：1、绩效指标可选择填写。 2、根据需要可往下续表。 3、省级部门专项业务经费一级项目的绩效目标必须公开。4、市县不强制要求公开，可根据本级部门预算绩效管理工作推进情况统一部署。

Sheet 表15-部门整体支出绩效目标表
A1: 表15
A2: 2019年部门整体支出绩效目标表
A3: 部门（单位）名称 | D3: 紫阳县自然资源局
A4: 年度 主要 任务 | B4: 任务名称 | D4: 主要内容 | F4: 预算金额（百元）
F5: 总额 | G5: 财政拨款 | H5: 其他资金
B6: 任务1 | D6: 自然资源管理业务工作经费 | F6: 3500 | G6: 3500
B7: 任务2
B8: 任务3
B9: 任务4
B10: 金额合计 | F10: 3500 | G10: 3500
A11: 年度 总体 目标 | B11: 结合我县自然资源发展实际需求，提升行业管理能力和服务水平，满足自然资源发展，保证正常办公需要，高标准完成年度各类考核目标任务 。
A12: 年 度 绩 效 指 标 | B12: 一级指标 | C12: 二级指标 | E12: 指标内容 | G12: 指标值
B13: 产出指标 | C13: 数量指标 | E13: 按部门职责做好日常行政管理工作 | G13: 部门预算单位按职责完成
E14: 优化提升营商环境 | G14: 打造不动产登记便民利民示范窗口，实现“一窗式”办理。
C15: 质量指标 | E15: 行政许可实施规范率 | G15: 1
C16: 时效指标 | E16: 自然资源部门行政管理工作职能进度 | G16: 全年
B17: 效益指标 | C17: 经济效益 指标 | E17: 严格控制行政成本、节约财政资金 | G17: 达到预期
C18: 社会效益 指标 | E18: 行业管理水平和服务能力进一步提高 | G18: 提高
B19: 满意度 指标 | C19: 服务对象 满意度指标 | E19: 服务对象满意度 | G19: 1
A20: 备注：1、年度绩效指标可选择填写。2、试行部门预算绩效目标重点审核的省级部门的整体绩效目标必须公开。3、市县不强制要求公开，可根据本级部门预算绩效管理工作推进情况统一部署。

Sheet 表16-专项资金整体绩效目标表
A1: 表16 | K1: 表16
A2: 2019年专项资金整体绩效目标表 | K2: 2019年专项资金整体绩效目标表
A3: 专项（项目）名称 | K3: 专项（项目）名称 | N3: 履职专项业务经费 | AF3: 部门整体支出预算绩效目标申报表
A4: 主管部门 | F4: 实施期限 | K4: 主管部门 | N4: 紫阳县自然资源局 | P4: 实施期限 | R4: 2019.1-12 | AF4: （20 18 年度）
A5: 资金金额 （百元） | D5: 实施期资金总额： | F5: 年度资金总额： | K5: 资金金额 （百元） | N5: 实施期资金总额： | O5: 3500 | P5: 年度资金总额： | R5: 3500 | AF5: 填报单位（盖章）：中方县国土资源局
D6: 其中：财政拨款 | F6: 其中：财政拨款 | N6: 其中：财政拨款 | O6: 3500 | P6: 其中：财政拨款 | R6: 3500 | AF6: 部门基本信息 | AG6: 部门名称 | AI6: 中方县国土资源局
D7: 其他资金 | F7: 其他资金 | N7: 其他资金 | P7: 其他资金 | AG7: 预算绩效管理 联络员 | AI7: 石剑华 | AK7: 联系电话 | AL7: 2811648
A8: 总 体 目 标 | B8: 实施期总目标 | F8: 年度目标 | K8: 总 体 目 标 | L8: 实施期总目标 | P8: 年度目标 | AG8: 人员编制数 | AI8: 262 | AK8: 实有人数 | AL8: 218
B9: 目标1： 目标2： 目标3： …… | F9: 目标1： 目标2： 目标3： …… | L9: 结合我县自然资源发展实际需求，提升行业管理能力和服务水平，满足自然资源发展，保证正常办公需要，高标准完成年度各类考核目标任务 。 | P9: 结合我县自然资源发展实际需求，提升行业管理能力和服务水平，满足自然资源发展，保证正常办公需要，高标准完成年度各类考核目标任务 。 | AG9: 单位职能 | AI9: 1、承担保护和合理利用土地资源、矿产资源等自然资源的责任； 2、承担规范国土资源管理秩序的责任； 3、承担优化配置国土资源的责任； 4、负责规范国土资源权属管理； 5、承担全县耕地保护的责任； 6、承担及时准确提供全县土地利用各种数据的责任； 7、承担节约集约利用土地资源的责任； 8、承担规范土地、矿业权和测绘市场秩序的责任； 9、负责矿产资源开发的管理； 10、依法实施地质勘查行业和矿产资源储备管理； 11、承担地质环境保护的责任； 12、承担地质灾害预防和治理的责任； 13、依法依规征收资源收益； 14、推进国土资源科技进步； 15、开展国土资源对外合作与交流； 16、负责统一监督管理全县测绘工作； 17、管理县级基础地理信息数据； 18、承办县人民政府交办的其他事项。
A10: 绩 效 指 标 | B10: 一级 指标 | C10: 二级指标 | D10: 指标内容 | E10: 指标值 | F10: 二级指标 | G10: 指标内容 | I10: 指标值 | K10: 绩 效 指 标 | L10: 一级 指标 | M10: 二级指标 | N10: 指标内容 | O10: 指标值 | P10: 二级指标 | Q10: 指标内容 | S10: 指标值 | AG10: 单位年度收入预算（万元）
B11: 产 出 指 标 | C11: 数量指标 | D11: 指标1： | F11: 数量指标 | G11: 指标1： | L11: 产 出 指 标 | M11: 数量指标 | N11: 按部门职责做好日常行政管理工作 | O11: 部门预算单位按职责完成 | P11: 数量指标 | Q11: 指标1：按部门职责做好日常行政管理工作 | S11: 部门预算单位按职责完成 | AG11: 收入合计 | AI11: 公共财政拨款 | AJ11: 政府性基金拨款 | AK11: 非税收入拨款 | AL11: 其他资金 | AN11: 上年结转
D12: 指标2： | G12: 指标2： | N12: 优化提升营商环境 | O12: 打造不动产登记便民利民示范窗口，实现“一窗式”办理。 | Q12: 指标2：优化提升营商环境 | S12: 打造不动产登记便民利民示范窗口，实现“一窗式”办理。 | AG12: 2927.8 | AI12: 1972.9 | AJ12: 320 | AK12: 540 | AL12: 94.9 | AN12: 1182.6
D13: …… | G13: …… | M13: 质量指标 | N13: 行政许可实施规范率 | O13: 1 | P13: 质量指标 | Q13: 行政许可实施规范率 | S13: 1 | AG13: 单位年度支出预算（万元）
C14: 质量指标 | D14: 指标1： | F14: 质量指标 | G14: 指标1： | M14: 时效指标 | N14: 自然资源部门行政管理工作职能进度 | O14: 全年 | P14: 时效指标 | Q14: 自然资源部门行政管理工作职能进度 | S14: 全年 | AG14: 支出合计 | AI14: 基本支出 | AK14: 项目支出
D15: 指标2： | G15: 指标2： | L15: 效 益 指 标 | M15: 经济效益 指标 | N15: 严格控制行政成本、节约财政资金 | O15: 达到预期 | P15: 经济效益 指标 | Q15: 严格控制行政成本、节约财政资金 | S15: 达到预期 | AG15: 4110.4 | AI15: 1820.32 | AK15: 2290.08
D16: …… | G16: …… | M16: 社会效益 指标 | N16: 行业管理水平和服务能力进一步提高 | O16: 提高 | P16: 社会效益 指标 | Q16: 行业管理水平和服务能力进一步提高 | S16: 提高 | AG16: 其中 | AI16: 三公经费预算（万元）
C17: 时效指标 | D17: 指标1： | F17: 时效指标 | G17: 指标1： | L17: 满意度指标 | M17: 服务对象 满意度指标 | N17: 服务对象满意度 | O17: 1 | P17: 服务对象 满意度指标 | Q17: 服务对象满意度 | S17: 1 | AG17: 合计 | AI17: 公务用车运行和购置费 | AK17: 因公出国（境）费 | AM17: 公务接待费
D18: 指标2： | G18: 指标2： | K18: 备 注：1、绩效指标可选择填写。 2、根据需要可往下续表。 3、省级部门专项业务经费一级项目的绩效目标必须公开。4、市县不强制要求公开，可根据本级部门预算绩效管理工作推进情况统一部署。 | AG18: 44 | AI18: 19.5 | AK18: 0 | AM18: 24.5
D19: …… | G19: …… | AF19: 年度绩效目标 部门整体支出 | AG19: 本部门年度主要工作任务实现的目标： 目标1：保障县城、基础设施和民生项目的建设用地需求。 目标2：争取完成耕地开发1000亩以上，确保全县基本农田24.3万亩、耕地保有量28.3万亩不减少。 目标3：开展矿山执法巡察不少于150次，立案率、结案率不低于80%，全力维护全县国土资源管理良好秩序。 目标4：加强国土资源宣传，提高群众知法、懂法、护法意识。 目标5：加强地质灾害防治，争取不发生人员伤亡事故。 目标6：加强机关效能建设，提供工作效率，确保圆满完成各项工作任务。
C20: 成本指标 | D20: 指标1： | F20: 成本指标 | G20: 指标1： | AF20: 年度绩效指标 部门整体支出 | AG20: 产出指标 （包括数量、质量、时效、成本等） | AI20: 指标1：紧紧围绕县委、县政府中心工作，积极向市局、省厅汇报衔接。 指标2：认真做好基本农田保护基础工作，扎实做好耕地开发和土地整理工作。 指标3：分区包干负责，责任到人，认真开展矿山执法巡察，严厉打击非法开采行为，严厉查处。 指标4：利用4.22、6.25、8.29宣传日大力开展宣传。 指标5：认真做好地质灾害防治前期排查工作，每天安排人员值班，扎实做好隐患点治理工作。 指标6：加强机关人员考勤管理，做好内部作风督察、通报。
D21: 指标2： | G21: 指标2： | AG21: 效益指标 （包括经济效益、社会效益、环境效益、可持续影响以及服务对象满意度等。） | AI21: 指标1：全力保障县城、基础设施和民生项目的建设用地需求。 指标2：完成耕地开发1000亩以上，确保全县基本农田24.3万亩、耕地保有量28.3万亩不减少。 指标3：完成矿山执法巡察150次以上，立案率、结案率不低于80%，全力维护全县国土资源管理良好秩序。 指标4：参加国土宣传人数15人，发放宣传资料2000份，悬挂横幅12幅，群众知法、懂法、护法意识不断提高。 指标5：扎实做好地质灾害防治各项基础工作，确保不发生人员伤亡和财产损失事故。 指标6：机关作风不断转好，效能进一步提高，完成各项工作任务。
D22: …… | G22: ……
C23: …… | F23: ……
B24: 效 益 指 标 | C24: 经济效益 指标 | D24: 指标1： | F24: 经济效益 指标 | G24: 指标1：
D25: 指标2： | G25: 指标2：
D26: …… | G26: ……
C27: 社会效益 指标 | D27: 指标1： | F27: 社会效益 指标 | G27: 指标1：
D28: 指标2： | G28: 指标2：
D29: …… | G29: ……
C30: 生态效益 指标 | D30: 指标1： | F30: 生态效益 指标 | G30: 指标1：
D31: 指标2： | G31: 指标2：
D32: …… | G32: ……
C33: 可持续影响 指标 | D33: 指标1： | F33: 可持续影响 指标 | G33: 指标1：
D34: 指标2： | G34: 指标2：
D35: …… | G35: ……
C36: …… | F36: ……
B37: 满意度指标 | C37: 服务对象 满意度指标 | D37: 指标1： | F37: 服务对象 满意度指标 | G37: 指标1：
D38: 指标2： | G38: 指标2：
D39: …… | G39: ……
C40: …… | F40: ……
A41: 备注：1、绩效指标可选择填写。2、省级部门管理的试行绩效目标重点审核的专项资金的绩效目标必须公开。3、市县不强制要求公开，可根据本级部门预算绩效管理工作推进情况统一部署。
